fUSD/lending_fUSD_20250110
["ID","MTS","AMOUNT","RATE_DAILY","PERIOD"]
[348404180,1736514647423,-500.0,0.0001,2]
[348404181,1736514647435,-950.96829306,0.0001,2]
[348404182,1736514647448,-299.59118953,0.0001,2]
[348404183,1736514647459,-313.7673,0.0001,2]
[348404184,1736514647838,-271.61,9.997e-05,2]
[348404185,1736514647848,-500.0,9.997e-05,2]
[348404186,1736514647857,-125.64012339,9.999e-05,2]
[348404187,1736514647868,-446.91429972,9.999e-05,2]
[348404188,1736514647879,-1768.87919567,9.999e-05,2]
[348404189,1736514647896,-47364.20567355,9.999e-05,2]
[348404190,1736514647905,-514868.19080419,0.0001,2]
[348404191,1736514648011,-1655.65,0.0001,2]
[348404192,1736514648026,-5419.45,0.0001,2]
[348404193,1736514648418,-571.25,9.997e-05,2]
[348404194,1736514648441,-8707924.75,0.0001,2]
[348404195,1736514648507,-500.0,9.849e-05,2]
[348404196,1736514648517,-26070.14391551,0.0001,2]
[348404197,1736514648542,-638.91,9.997e-05,2]
[348404198,1736514648551,-23674.68794781,0.0001,2]
[348404200,1736514762955,1802.5,0.00014,90]
[348404214,1736515202337,717.76,8.219e-05,2]
[348404217,1736515555615,1919.19081665,0.00017,120]
[348404336,1736515797467,-171.72,8.917e-05,2]
[348404337,1736515797491,-1982.31,8.958e-05,2]
[348404342,1736515831312,250.0,8.928e-05,2]
[348404359,1736515832373,-150.0,9e-05,2]
[348404360,1736515832382,-150.0,9e-05,2]
[348404361,1736515832391,-500.0,9e-05,2]
[348404362,1736515832401,-500.0,9e-05,2]
[348404363,1736515832410,-500.0,9e-05,2]
[348404364,1736515832418,-500.0,9e-05,2]
[348404365,1736515832427,-500.0,9e-05,2]
[348404366,1736515832436,-500.0,9e-05,2]
[348404367,1736515832445,-500.0,9e-05,2]
[348404368,1736515832455,-500.0,9e-05,2]
[348404369,1736515832465,-500.0,9e-05,2]
[348404370,1736515832475,-500.0,9e-05,2]
[348404371,1736515832484,-500.0,9e-05,2]
[348404372,1736515832494,-500.0,9e-05,2]
[348404373,1736515832505,-100.0,9e-05,2]
[348404374,1736515832518,-400.0,9e-05,2]
[348404375,1736515832527,-4.92261432,9e-05,2]
[348404376,1736515832539,-475.019545,9e-05,2]
[348404377,1736515832551,-20.05784068,9e-05,2]
[348404378,1736515832560,-322.46975132,9e-05,2]
[348404379,1736515832577,-177.53024868,9e-05,2]
[348404380,1736515832587,-500.0,9e-05,2]
[348404381,1736515832596,-42.9904084,9e-05,2]
[348404382,1736515832608,-457.0095916,9e-05,2]
[348404383,1736515832620,-500.0,9e-05,2]
[348404384,1736515832630,-500.0,9e-05,2]
[348404385,1736515832641,-492.9904084,9e-05,2]
[348404386,1736515832653,-7.0095916,9e-05,2]
[348404387,1736515832663,-500.0,9e-05,2]
[348404388,1736515832674,-500.0,9e-05,2]
[348404389,1736515832684,-609.1844054,9.02e-05,2]
[348404390,1736515832701,-744.99430954,9.02e-05,2]
[348404391,1736515832714,-3026.48911653,9.02e-05,2]
[348404392,1736515832727,-714.63265258,9.02e-05,2]
[348404395,1736515832740,-5014.07951595,9.02e-05,2]
[348404397,1736515832751,-890.0,9.035e-05,2]
[348404398,1736515832761,-698.07,9.05e-05,2]
[348404399,1736515832771,-150.0,9.25e-05,2]
[348404400,1736515832780,-155.278,9.5e-05,2]
[348404401,1736515832791,-150.0,9.5e-05,2]
[348404402,1736515832803,-150.0,9.74e-05,2]
[348404404,1736515832814,-150.0,9.75e-05,2]
[348404406,1736515832831,-40.99484871,9.761e-05,2]
[348404410,1736515832864,-500.0,9e-05,2]
[348404412,1736515832875,-250.74660129,9.761e-05,2]
[348404414,1736515832887,-150.0,9.763e-05,2]
[348404416,1736515832898,-437.76,9.77e-05,2]
[348404418,1736515832910,-3428.89339871,9.8e-05,2]
[348404420,1736515832924,-317.56813477,9.8e-05,2]
[348404422,1736515832936,-150.0,9.844e-05,2]
[348404424,1736515832947,-1130.75735013,9.85e-05,2]
[348404426,1736515832958,-68.43133124,9.857e-05,2]
[348404428,1736515832971,-81.56866876,9.857e-05,2]
[348404430,1736515832981,-150.0,9.878e-05,2]
[348404432,1736515832992,-1073.92272633,9.898e-05,2]
[348404435,1736515833006,-1259.99999995,9.898e-05,2]
[348404437,1736515833019,-2666.07727372,9.898e-05,2]
[348404439,1736515833032,-150.0,9.933e-05,2]
[348404442,1736515833042,-150.0,9.941e-05,2]
[348404445,1736515833054,-150.0,9.944e-05,2]
[348404449,1736515833065,-150.0,9.958e-05,2]
[348404452,1736515833085,-1099.5485036,9.992e-05,2]
[348404454,1736515833100,-2203.3673513,9.992e-05,2]
[348404455,1736515833117,-217.0318757,9.996e-05,2]
[348404456,1736515833131,-20417.2750155,9.996e-05,2]
[348404457,1736515833164,-7780.23843371,9.996e-05,2]
[348404458,1736515833178,-22505.91692755,9.996e-05,2]
[348404459,1736515833190,-2933.342,9.996e-05,2]
[348404460,1736515833202,-173.002,9.996e-05,2]
[348404461,1736515833213,-848.99,9.996e-05,2]
[348404462,1736515833227,-677.15,9.996e-05,2]
[348404463,1736515833239,-746.37,9.996e-05,2]
[348404464,1736515833251,-1186.37,9.996e-05,2]
[348404465,1736515833264,-500.0,9.996e-05,2]
[348404466,1736515833275,-1224.79,9.996e-05,2]
[348404467,1736515833286,-500.0,9.996e-05,2]
[348404469,1736515833298,-1322.37,9.996e-05,2]
[348404471,1736515833309,-722.48,9.996e-05,2]
[348404475,1736515833337,-756.89,9.996e-05,2]
[348404478,1736515833349,-1708.9,9.996e-05,2]
[348404481,1736515833365,-813.55,9.996e-05,2]
[348404485,1736515833380,-2024.75,9.996e-05,2]
[348404489,1736515833396,-1700.74,9.996e-05,2]
[348404492,1736515833410,-6540.47,9.996e-05,2]
[348404495,1736515833424,-1043.79,9.996e-05,2]
[348404498,1736515833437,-829.29,9.996e-05,2]
[348404500,1736515833451,-500.0,9.996e-05,2]
[348404503,1736515833466,-730.88,9.996e-05,2]
[348404505,1736515833479,-1222.19,9.996e-05,2]
[348404507,1736515833494,-500.0,9.996e-05,2]
[348404509,1736515833509,-1087.5,9.996e-05,2]
[348404512,1736515833524,-2148.65,9.996e-05,2]
[348404514,1736515833539,-656.8,9.996e-05,2]
[348404516,1736515833553,-1069.97,9.996e-05,2]
[348404518,1736515833565,-3473.89,9.996e-05,2]
[348404519,1736515833587,-1602.73,9.996e-05,2]
[348404520,1736515833599,-1841.52,9.996e-05,2]
[348404521,1736515833611,-1427.22,9.996e-05,2]
[348404522,1736515833625,-653.44,9.996e-05,2]
[348404523,1736515833639,-1992.31,9.996e-05,2]
[348404524,1736515833654,-500.0,9.996e-05,2]
[348404525,1736515833668,-1111.52,9.996e-05,2]
[348404526,1736515833682,-3103.8,9.996e-05,2]
[348404527,1736515833695,-3054.6,9.996e-05,2]
[348404528,1736515833709,-500.0,9.996e-05,2]
[348404530,1736515833724,-945.27,9.996e-05,2]
[348404531,1736515833740,-783.45,9.996e-05,2]
[348404533,1736515833753,-763.63,9.996e-05,2]
[348404534,1736515833768,-659.142526,9.996e-05,2]
[348404535,1736515833783,-845.82,9.996e-05,2]
[348404536,1736515833797,-1655.79,9.996e-05,2]
[348404537,1736515833811,-500.0,9.996e-05,2]
[348404538,1736515833830,-893.01741642,9.996e-05,2]
[348404539,1736515833848,-1910.19258358,9.996e-05,2]
[348404540,1736515833861,-642.97,9.996e-05,2]
[348404541,1736515833875,-642.26,9.996e-05,2]
[348404542,1736515833895,-328.75392296,9.996e-05,2]
[348404548,1736515838267,-500.0,9e-05,2]
[348404549,1736515838279,-73.45,9e-05,2]
[348404550,1736515838343,-426.55,9e-05,2]
[348404551,1736515838354,-500.0,9e-05,2]
[348404552,1736515838365,-500.0,9e-05,2]
[348404553,1736515838376,-500.0,9e-05,2]
[348404554,1736515838386,-500.0,9e-05,2]
[348404555,1736515838397,-500.0,9e-05,2]
[348404556,1736515838408,-171.24607704,9.996e-05,2]
[348404557,1736515838420,-623.769623,9.996e-05,2]
[348404558,1736515838431,-500.0,9.996e-05,2]
[348404559,1736515838443,-2851.93,9.996e-05,2]
[348404560,1736515838454,-500.0,9.996e-05,2]
[348404561,1736515838465,-1568.21,9.996e-05,2]
[348404562,1736515838476,-500.0,9.996e-05,2]
[348404563,1736515838487,-2936.54,9.996e-05,2]
[348404564,1736515838497,-671.88,9.996e-05,2]
[348404565,1736515838508,-500.0,9.996e-05,2]
[348404566,1736515838518,-500.0,9.996e-05,2]
[348404567,1736515838528,-500.0,9.996e-05,2]
[348404568,1736515838539,-711.77,9.996e-05,2]
[348404569,1736515838550,-1173.76,9.996e-05,2]
[348404570,1736515838560,-500.0,9.996e-05,2]
[348404571,1736515838572,-718.14,9.997e-05,2]
[348404572,1736515838584,-508.25,9.997e-05,2]
[348404573,1736515838595,-650.14,9.997e-05,2]
[348404574,1736515838606,-500.0,9.997e-05,2]
[348404575,1736515838617,-571.82,9.997e-05,2]
[348404576,1736515838627,-385.56084374,9.997e-05,2]
[348404577,1736515838641,-114.43915626,9.997e-05,2]
[348404578,1736515838651,-778.0,9.997e-05,2]
[348404579,1736515838662,-560.56,9.997e-05,2]
[348404580,1736515838673,-500.0,9.997e-05,2]
[348404581,1736515838683,-500.0,9.997e-05,2]
[348404582,1736515838692,-155.1441643,9.997e-05,2]
[348404583,1736515838704,-344.8558357,9.997e-05,2]
[348404616,1736515839081,-500.0,9.997e-05,2]
[348404619,1736515839113,-769.44,9.997e-05,2]
[348404622,1736515839129,-500.0,9.997e-05,2]
[348404624,1736515839138,-622.91,9.997e-05,2]
[348404626,1736515839149,-500.0,9.997e-05,2]
[348404628,1736515839158,-506.01,9.997e-05,2]
[348404630,1736515839167,-500.0,9.997e-05,2]
[348404632,1736515839177,-582.14,9.997e-05,2]
[348404634,1736515839187,-500.0,9.997e-05,2]
[348404636,1736515839196,-633.66,9.997e-05,2]
[348404638,1736515839205,-500.0,9.997e-05,2]
[348404640,1736515839214,-707.73,9.997e-05,2]
[348404642,1736515839223,-506.07700001,9.997e-05,2]
[348404644,1736515839233,-500.0,9.997e-05,2]
[348404646,1736515839242,-500.0,9.997e-05,2]
[348404648,1736515839252,-500.0,9.997e-05,2]
[348404650,1736515839262,-500.0,9.997e-05,2]
[348404652,1736515839273,-720.27,9.997e-05,2]
[348404654,1736515839283,-500.0,9.997e-05,2]
[348404656,1736515839293,-500.0,9.997e-05,2]
[348404658,1736515839302,-500.0,9.997e-05,2]
[348404660,1736515839312,-500.0,9.997e-05,2]
[348404662,1736515839325,-162.64747282,9.997e-05,2]
[348404664,1736515839337,-337.35252718,9.997e-05,2]
[348404666,1736515839347,-162.64747282,9.997e-05,2]
[348404683,1736515839500,-337.35252718,9.997e-05,2]
[348404685,1736515839510,-501.64215988,9.997e-05,2]
[348404687,1736515839519,-584.9,9.997e-05,2]
[348404689,1736515839528,-500.0,9.997e-05,2]
[348404692,1736515839538,-269.76790156,9.997e-05,2]
[348404694,1736515839548,-500.0,9.997e-05,2]
[348404695,1736515839558,-500.0,9.997e-05,2]
[348404697,1736515839570,-501.60678494,9.997e-05,2]
[348404699,1736515839583,-500.0,9.997e-05,2]
[348404701,1736515839592,-500.0,9.997e-05,2]
[348404703,1736515839602,-543.9,9.997e-05,2]
[348404705,1736515839611,-500.0,9.997e-05,2]
[348404708,1736515839621,-500.0,9.997e-05,2]
[348404710,1736515839631,-500.0,9.997e-05,2]
[348404712,1736515839640,-500.0,9.997e-05,2]
[348404714,1736515839650,-417.12,9.997e-05,2]
[348404716,1736515839660,-500.0,9.997e-05,2]
[348404718,1736515839669,-676.53,9.997e-05,2]
[348404720,1736515839678,-681.35,9.997e-05,2]
[348404722,1736515839688,-500.0,9.997e-05,2]
[348404723,1736515839698,-352.20864015,9.997e-05,2]
[348404726,1736515839709,-384.92135985,9.997e-05,2]
[348404728,1736515839718,-355.77974534,9.997e-05,2]
[348404774,1736515840143,-500.0,9e-05,2]
[348404776,1736515840154,-148.38324154,9e-05,2]
[348404781,1736515840206,-351.61675846,9e-05,2]
[348404782,1736515840215,-144.22025466,9.997e-05,2]
[348404783,1736515840225,-199.88298688,9.997e-05,2]
[348404784,1736515840236,-484.29701312,9.997e-05,2]
[348404785,1736515840246,-68.7719866,9.997e-05,2]
[348404831,1736515840873,-500.0,9e-05,2]
[348404832,1736515840883,-431.2280134,9.997e-05,2]
[348404833,1736515840893,-500.0,9.997e-05,2]
[348404834,1736515840902,-353.24519552,9.997e-05,2]
[348404835,1736515840914,-146.75480448,9.997e-05,2]
[348404836,1736515840925,-500.0,9.997e-05,2]
[348404837,1736515840934,-500.0,9.997e-05,2]
[348404838,1736515840944,-527.13770077,9.997e-05,2]
[348404839,1736515840955,-500.0,9.997e-05,2]
[348404841,1736515840964,-500.0,9.997e-05,2]
[348404843,1736515840975,-500.0,9.997e-05,2]
[348404845,1736515840985,-500.0,9.997e-05,2]
[348404847,1736515840995,-345.19877437,9.997e-05,2]
[348404849,1736515841008,-154.80122563,9.997e-05,2]
[348404851,1736515841018,-160.79877437,9.997e-05,2]
[348404915,1736515841698,-1056.33122563,9.997e-05,2]
[348404917,1736515841708,-500.0,9.997e-05,2]
[348404919,1736515841718,-500.0,9.997e-05,2]
[348404921,1736515841728,-574.67,9.997e-05,2]
[348404923,1736515841738,-500.0,9.997e-05,2]
[348404925,1736515841750,-500.0,9.997e-05,2]
[348404927,1736515841760,-500.0,9.997e-05,2]
[348404930,1736515841772,-500.0,9.997e-05,2]
[348404932,1736515841783,-709.61,9.997e-05,2]
[348404934,1736515841796,-500.0,9.997e-05,2]
[348404935,1736515841807,-500.0,9.997e-05,2]
[348404937,1736515841817,-500.0,9.997e-05,2]
[348404939,1736515841831,-500.0,9.997e-05,2]
[348404941,1736515841843,-264.84899937,9.997e-05,2]
[348404943,1736515841857,-235.15100063,9.997e-05,2]
[348404945,1736515841867,-521.6,9.997e-05,2]
[348404948,1736515841877,-276.01119151,9.997e-05,2]
[348405305,1736515846120,-500.0,9e-05,2]
[348405306,1736515846131,-500.0,9e-05,2]
[348405307,1736515846141,-500.0,9e-05,2]
[348405308,1736515846152,-500.0,9e-05,2]
[348405309,1736515846162,-500.0,9e-05,2]
[348405310,1736515846172,-500.0,9e-05,2]
[348405311,1736515846181,-1334.05,9.996e-05,2]
[348405312,1736515846194,-500.0,9.996e-05,2]
[348405313,1736515846205,-607.63750142,9.996e-05,2]
[348405314,1736515846214,-223.98880849,9.997e-05,2]
[348405315,1736515846224,-500.0,9.997e-05,2]
[348405316,1736515846233,-500.0,9.997e-05,2]
[348405317,1736515846243,-577.41,9.997e-05,2]
[348405318,1736515846252,-1462.5,9.997e-05,2]
[348405319,1736515846261,-500.0,9.997e-05,2]
[348405320,1736515846270,-500.0,9.997e-05,2]
[348405321,1736515846280,-500.0,9.997e-05,2]
[348405322,1736515846289,-500.0,9.997e-05,2]
[348405323,1736515846299,-500.0,9.997e-05,2]
[348405324,1736515846308,-752.32,9.997e-05,2]
[348405325,1736515846318,-500.0,9.997e-05,2]
[348405326,1736515846327,-500.0,9.997e-05,2]
[348405327,1736515846343,-500.0,9.997e-05,2]
[348405328,1736515846353,-500.0,9.997e-05,2]
[348405329,1736515846363,-500.0,9.997e-05,2]
[348405330,1736515846372,-784.62,9.997e-05,2]
[348405331,1736515846382,-500.0,9.997e-05,2]
[348405332,1736515846392,-500.0,9.997e-05,2]
[348405333,1736515846405,-500.0,9.997e-05,2]
[348405335,1736515846415,-500.0,9.997e-05,2]
[348405336,1736515846425,-514.78,9.997e-05,2]
[348405337,1736515846435,-500.0,9.997e-05,2]
[348405338,1736515846445,-1042.75,9.997e-05,2]
[348405339,1736515846454,-500.0,9.997e-05,2]
[348405341,1736515846464,-663.18,9.997e-05,2]
[348405342,1736515846474,-500.0,9.997e-05,2]
[348405343,1736515846484,-576.35,9.997e-05,2]
[348405344,1736515846494,-500.0,9.997e-05,2]
[348405345,1736515846504,-500.0,9.997e-05,2]
[348405346,1736515846516,-543.99,9.997e-05,2]
[348405347,1736515846526,-500.0,9.997e-05,2]
[348405348,1736515846538,-794.46,9.997e-05,2]
[348405349,1736515846548,-500.0,9.997e-05,2]
[348405350,1736515846557,-503.65964742,9.997e-05,2]
[348405351,1736515846568,-500.0,9.997e-05,2]
[348405352,1736515846577,-555.63,9.997e-05,2]
[348405353,1736515846591,-500.0,9.997e-05,2]
[348405354,1736515846601,-623.06,9.997e-05,2]
[348405356,1736515846611,-500.0,9.997e-05,2]
[348405358,1736515846621,-500.0,9.997e-05,2]
[348405360,1736515846631,-500.0,9.997e-05,2]
[348405362,1736515846640,-500.0,9.997e-05,2]
[348405364,1736515846650,-500.0,9.997e-05,2]
[348405366,1736515846660,-2486.01,9.997e-05,2]
[348405367,1736515846670,-813.41,9.997e-05,2]
[348405369,1736515846680,-500.0,9.997e-05,2]
[348405371,1736515846690,-625.58,9.997e-05,2]
[348405374,1736515846700,-500.0,9.997e-05,2]
[348405375,1736515846710,-500.0,9.997e-05,2]
[348405378,1736515846720,-1345.42,9.997e-05,2]
[348405380,1736515846729,-500.0,9.997e-05,2]
[348405382,1736515846739,-503.16,9.997e-05,2]
[348405383,1736515846748,-580.87,9.997e-05,2]
[348405386,1736515846758,-858.75,9.997e-05,2]
[348405388,1736515846770,-1674.29,9.997e-05,2]
[348405390,1736515846780,-743.91,9.997e-05,2]
[348405392,1736515846789,-500.0,9.997e-05,2]
[348405394,1736515846799,-743.37,9.997e-05,2]
[348405396,1736515846809,-711.33,9.997e-05,2]
[348405398,1736515846818,-718.52,9.997e-05,2]
[348405400,1736515846831,-691.52,9.997e-05,2]
[348405402,1736515846841,-500.0,9.997e-05,2]
[348405404,1736515846851,-500.0,9.997e-05,2]
[348405406,1736515846860,-796.03,9.997e-05,2]
[348405408,1736515846869,-3249.14,9.997e-05,2]
[348405410,1736515846879,-500.0,9.997e-05,2]
[348405412,1736515846888,-500.0,9.997e-05,2]
[348405414,1736515846899,-500.0,9.997e-05,2]
[348405416,1736515846909,-500.0,9.997e-05,2]
[348405418,1736515846919,-500.0,9.997e-05,2]
[348405420,1736515846928,-500.0,9.997e-05,2]
[348405422,1736515846938,-687.79,9.997e-05,2]
[348405424,1736515846947,-500.0,9.997e-05,2]
[348405426,1736515846957,-774.76,9.997e-05,2]
[348405428,1736515846966,-500.0,9.997e-05,2]
[348405430,1736515846976,-771.88,9.997e-05,2]
[348405432,1736515846986,-500.0,9.997e-05,2]
[348405433,1736515846996,-500.0,9.997e-05,2]
[348405434,1736515847006,-699.82,9.997e-05,2]
[348405435,1736515847016,-500.0,9.997e-05,2]
[348405437,1736515847026,-974.27,9.997e-05,2]
[348405438,1736515847035,-500.0,9.997e-05,2]
[348405439,1736515847046,-738.24,9.997e-05,2]
[348405441,1736515847057,-695.45,9.997e-05,2]
[348405442,1736515847068,-500.0,9.997e-05,2]
[348405443,1736515847080,-500.0,9.997e-05,2]
[348405444,1736515847095,-963.78,9.997e-05,2]
[348405445,1736515847106,-500.0,9.997e-05,2]
[348405446,1736515847121,-920.42,9.997e-05,2]
[348405447,1736515847132,-896.98,9.997e-05,2]
[348405448,1736515847142,-500.0,9.997e-05,2]
[348405449,1736515847153,-560.55,9.997e-05,2]
[348405450,1736515847163,-1356.95,9.997e-05,2]
[348405451,1736515847173,-864.97,9.997e-05,2]
[348405452,1736515847183,-500.0,9.997e-05,2]
[348405453,1736515847194,-500.0,9.997e-05,2]
[348405454,1736515847207,-500.0,9.997e-05,2]
[348405455,1736515847218,-672.33,9.997e-05,2]
[348405456,1736515847228,-500.0,9.997e-05,2]
[348405457,1736515847238,-836.48,9.997e-05,2]
[348405458,1736515847253,-500.0,9.997e-05,2]
[348405459,1736515847263,-696.26,9.997e-05,2]
[348405460,1736515847274,-2204.22,9.997e-05,2]
[348405461,1736515847284,-1090.04,9.997e-05,2]
[348405462,1736515847297,-500.0,9.997e-05,2]
[348405463,1736515847308,-720.68,9.997e-05,2]
[348405464,1736515847319,-572.41,9.997e-05,2]
[348405465,1736515847336,-500.0,9.997e-05,2]
[348405466,1736515847347,-212.65955623,9.997e-05,2]
[348405467,1736515847357,-500.0,9.997e-05,2]
[348405468,1736515847367,-762.45,9.997e-05,2]
[348405469,1736515847377,-506.76,9.997e-05,2]
[348405470,1736515847387,-625.19,9.997e-05,2]
[348405471,1736515847397,-804.44,9.997e-05,2]
[348405472,1736515847407,-500.0,9.997e-05,2]
[348405473,1736515847418,-679.94,9.997e-05,2]
[348405474,1736515847428,-500.0,9.997e-05,2]
[348405475,1736515847438,-683.8,9.997e-05,2]
[348405476,1736515847449,-500.0,9.997e-05,2]
[348405477,1736515847460,-500.0,9.997e-05,2]
[348405478,1736515847471,-869.57,9.997e-05,2]
[348405479,1736515847481,-971.2,9.997e-05,2]
[348405480,1736515847492,-500.0,9.997e-05,2]
[348405481,1736515847504,-500.0,9.997e-05,2]
[348405482,1736515847515,-655.52,9.997e-05,2]
[348405483,1736515847526,-676.74,9.997e-05,2]
[348405484,1736515847536,-713.9,9.997e-05,2]
[348405485,1736515847546,-500.0,9.997e-05,2]
[348405486,1736515847556,-500.0,9.997e-05,2]
[348405487,1736515847569,-804.22,9.997e-05,2]
[348405488,1736515847579,-500.0,9.997e-05,2]
[348405489,1736515847595,-500.0,9.997e-05,2]
[348405490,1736515847606,-1185.17,9.997e-05,2]
[348405491,1736515847616,-500.0,9.997e-05,2]
[348405492,1736515847626,-644.44,9.997e-05,2]
[348405493,1736515847635,-500.0,9.997e-05,2]
[348405494,1736515847645,-938.06,9.997e-05,2]
[348405495,1736515847655,-500.0,9.997e-05,2]
[348405496,1736515847665,-500.0,9.997e-05,2]
[348405497,1736515847675,-500.0,9.997e-05,2]
[348405498,1736515847685,-500.0,9.997e-05,2]
[348405499,1736515847694,-623.05,9.997e-05,2]
[348405500,1736515847705,-500.0,9.997e-05,2]
[348405501,1736515847715,-500.76878672,9.998e-05,2]
[348405502,1736515847726,-490.6606523,9.998e-05,2]
[348405503,1736515847752,-9.3393477,9.998e-05,2]
[348405504,1736515847761,-500.0,9.998e-05,2]
[348405505,1736515847771,-503.91437239,9.998e-05,2]
[348405506,1736515847782,-500.0,9.998e-05,2]
[348405507,1736515847792,-399.81477991,9.998e-05,2]
[348405508,1736515847805,-100.18522009,9.998e-05,2]
[348405509,1736515847816,-500.0,9.998e-05,2]
[348405510,1736515847826,-500.0,9.998e-05,2]
[348405511,1736515847845,-500.0,9.998e-05,2]
[348405512,1736515847855,-500.0,9.998e-05,2]
[348405513,1736515847865,-500.0,9.998e-05,2]
[348405514,1736515847875,-500.0,9.998e-05,2]
[348405515,1736515847884,-500.0,9.998e-05,2]
[348405516,1736515847893,-500.0,9.998e-05,2]
[348405517,1736515847903,-500.0,9.998e-05,2]
[348405518,1736515847912,-119.39134349,9.998e-05,2]
[348405519,1736515847936,-394.3801098,9.997e-05,2]
[348405520,1736515847948,-418.32967253,9.997e-05,2]
[348405521,1736515847967,-255.58774476,9.997e-05,2]
[348405522,1736515847996,-98.12247291,9.997e-05,2]
[348405523,1736515848006,-372.61243209,9.998e-05,2]
[348405524,1736515848134,-7.99622442,9.998e-05,2]
[348405525,1736515848145,-500.0,9.998e-05,2]
[348405526,1736515848158,-500.0,9.998e-05,2]
[348405527,1736515848168,-500.0,9.998e-05,2]
[348405528,1736515848179,-500.0,9.998e-05,2]
[348405529,1736515848190,-500.0,9.998e-05,2]
[348405530,1736515848199,-500.0,9.998e-05,2]
[348405531,1736515848209,-500.0,9.998e-05,2]
[348405532,1736515848219,-595.34,9.998e-05,2]
[348405533,1736515848229,-500.0,9.998e-05,2]
[348405534,1736515848239,-500.0,9.998e-05,2]
[348405535,1736515848249,-500.0,9.998e-05,2]
[348405536,1736515848258,-569.44561945,9.998e-05,2]
[348405537,1736515848268,-500.0,9.998e-05,2]
[348405538,1736515848278,-500.0,9.998e-05,2]
[348405539,1736515848288,-500.0,9.998e-05,2]
[348405540,1736515848298,-500.0,9.998e-05,2]
[348405541,1736515848308,-500.0,9.998e-05,2]
[348405542,1736515848318,-500.0,9.998e-05,2]
[348405543,1736515848328,-521.58209063,9.998e-05,2]
[348405544,1736515848344,-500.0,9.998e-05,2]
[348405545,1736515848354,-500.0,9.998e-05,2]
[348405546,1736515848365,-500.0,9.998e-05,2]
[348405547,1736515848375,-500.0,9.998e-05,2]
[348405548,1736515848385,-500.0,9.998e-05,2]
[348405549,1736515848395,-500.0,9.998e-05,2]
[348405550,1736515848405,-500.0,9.998e-05,2]
[348405551,1736515848415,-500.0,9.998e-05,2]
[348405552,1736515848424,-438.72016399,9.998e-05,2]
[348405553,1736515848483,-500.0,9.998e-05,2]
[348405554,1736515848493,-500.0,9.998e-05,2]
[348405555,1736515848503,-500.0,9.998e-05,2]
[348405556,1736515848512,-500.0,9.998e-05,2]
[348405557,1736515848521,-500.0,9.998e-05,2]
[348405558,1736515848531,-500.0,9.998e-05,2]
[348405559,1736515848541,-500.0,9.998e-05,2]
[348405560,1736515848550,-500.0,9.998e-05,2]
[348405561,1736515848560,-500.0,9.998e-05,2]
[348405562,1736515848569,-500.0,9.998e-05,2]
[348405563,1736515848578,-500.0,9.998e-05,2]
[348405564,1736515848592,-500.0,9.998e-05,2]
[348405565,1736515848603,-500.0,9.998e-05,2]
[348405566,1736515848612,-500.0,9.998e-05,2]
[348405567,1736515848622,-540.32,9.998e-05,2]
[348405568,1736515848631,-528.17,9.998e-05,2]
[348405569,1736515848643,-500.0,9.998e-05,2]
[348405570,1736515848652,-500.0,9.998e-05,2]
[348405571,1736515848662,-500.0,9.998e-05,2]
[348405572,1736515848672,-500.0,9.998e-05,2]
[348405573,1736515848683,-547.4,9.998e-05,2]
[348405574,1736515848692,-366.82090752,9.998e-05,2]
[348405575,1736515848703,-500.0,9.998e-05,2]
[348405576,1736515848712,-526.61,9.998e-05,2]
[348405577,1736515848722,-500.0,9.998e-05,2]
[348405578,1736515848732,-500.0,9.998e-05,2]
[348405579,1736515848742,-500.0,9.998e-05,2]
[348405580,1736515848752,-500.0,9.998e-05,2]
[348405581,1736515848761,-500.0,9.998e-05,2]
[348405582,1736515848770,-503.15787173,9.998e-05,2]